[Event "3rd VIZAG GM-Open 2022"]
[Site "Visakapatnam"]
[Date "2022.06.16"]
[Round "9.6"]
[White "Subhayan Kundu"]
[Black "Fedorov, Alexei"]
[Result "1/2-1/2"]
[ECO "B45"]
[WhiteElo "2323"]
[BlackElo "2529"]
[Annotator "TA"]
[PlyCount "69"]
[EventDate "2022.06.13"]
[EventType "swiss"]
[EventCountry "IND"]
[SourceTitle "playchess.com"]
[Source "ChessBase"]
[SourceQuality "1"]
[TimeControl "5400+30"]

{[%evp 15,69,26,31,0,0,0,0,0,1,0,0,0,0,0,0,0,0,0,0,0,29,17,17,20,24,0,0,-7,-7,-7,7,-11,-7,-6,-9,-11,-9,-25,17,17,16,17,18,17,19,17,18,19,19,0,0,0,0,0,0,0]} 1. e4 {[%emt 0:00:17]} c5 {[%emt 0:00:04]} 2. Nf3 {[%emt 0:00:51]} e6 {[%emt 0:00:19]} 3. d4 {[%emt 0:00:33]} cxd4 {[%emt 0:00:06]} 4. Nxd4 {[%emt 0:00:04]} Nf6 {[%emt 0:00:13][%cal Bg8f6,Bf6d5,Bd5b4][%mdl 32]} 5. Nc3 {[%emt 0:00:14]} Nc6 {[%emt 0:00:05]} 6. Nxc6 {[%emt 0:03:26]} bxc6 {[%emt 0:00:06]} 7. e5 {[%emt 0:00:08]} Nd5 {[%emt 0:00:06]} 8. Ne4 {[%emt 0:00:06]} Bb7 {[%emt 0:01:06]} 9. c4 {[%emt 0:01:02][%cal Bc2c4,Bc4c5,Bc5d6][%mdl 32] B45: Sicilian Four Knights.} Nb4 {[%emt 0:00:24]} 10. c5 {[%emt 0:11:23] Threatens to win with Qb3.} Qb8 {[%emt 0:02:09]} 11. Nd6+ {[%emt 0:13:34]} Bxd6 {[%emt 0:00:08]} 12. cxd6 {[%emt 0:00:50]} Ba6 {[%emt 0:08:46]} 13. Qg4 {[%emt 0:09:55]} Nd3+ $1 {[%emt 0:08:49]} 14. Bxd3 {[%emt 0:06:54]} Bxd3 {[%emt 0:00:24] [#]} 15. Qxg7 $146 {[%emt 0:03:53][%cal Rg7h8] [#]} ({Predecessor:} 15. Qd4 Ba6 16. Bd2 Qb5 17. O-O-O O-O 18. Rhe1 c5 19. Qg4 f5 20. exf6 Rxf6 21. Re5 {½-½ (30) Ruefenacht,M (2392)-Chorfi,K (2095) ICCF email 2006}) 15... Qb4+ {[%emt 0:00:24]} 16. Bd2 {[%emt 0:00:04][%cal Rg7h8]} Qe4+ {[%emt 0:00:17]} 17. Be3 {[%emt 0:00:05][%cal Rg7h8]} O-O-O {[%emt 0:05:49]} 18. Qg3 {[%emt 0:02:09]} Rhg8 {[%emt 0:19:34][%mdl 64] [#] Deflection} 19. Qf4 {[%emt 0:00:12] Black should prevent Qxe4.} Qxg2 {[%emt 0:13:09]} 20. O-O-O {[%emt 0:22:33] aiming for Qd4.} Rg4 {[%emt 0:01:59]} 21. Rhg1 {[%emt 0:00:03] The board is on fire.} Rxf4 {[%emt 0:01:30]} ({Resist} 21... Qxg1 22. Rxg1 Rxf4 23. Bxf4 $16) 22. Rxg2 {[%emt 0:00:03]} Rc4+ {[%emt 0:00:05][%cal Bf4c4,Bc4c2,Bc2b2][%mdl 32]} 23. Kd2 {[%emt 0:00:07]} Be4 {[%emt 0:00:07]} 24. Rg3 {[%emt 0:00:12]} ({Wrong is} 24. Rg4 $2 Rc2+ 25. Ke1 Bf3 $19) 24... Rc2+ {[%emt 0:01:22]} 25. Ke1 {[%emt 0:00:04]} Rxb2 {[%emt 0:01:45]} 26. Rd4 {[%emt 0:02:24]} Bd5 {[%emt 0:04:14]} (26... Bc2 $5 {[%cal Rb2a2]}) 27. Ra4 {[%emt 0:00:49] The position is equal.} Rxa2 {[%emt 0:01:48]} 28. Rxa2 {[%emt 0:00:08]} Bxa2 $11 {[%emt 0:00:02][%mdl 4096] Endgame KRB-KRB} 29. Rg4 {[%emt 0:00:09] Strongly threatening Ra4.} Bd5 {[%emt 0:10:37]} 30. Ra4 {[%emt 0:03:20][%cal Oe3b6] Bb6! is the strong threat.} c5 {[%emt 0:01:10]} 31. Rxa7 {[%emt 0:01:20]} Bb7 {[%emt 0:00:23]} 32. Bxc5 {[%emt 0:03:33]} Rg8 {[%emt 0:00:43]} 33. Ra3 {[%emt 0:00:34]} Rg5 {[%emt 0:07:02]} 34. Bd4 {[%emt 0:02:19]} Rg4 {[%emt 0:01:25]} 35. Rg3 {[%emt 0:01:43] An interesting draw.  Weighted Error Value: White=0.06 (flawless) /Black=0.03 (flawless)} 1/2-1/2

[Event "3rd VIZAG GM-Open 2022"]
[Site "Visakapatnam"]
[Date "2022.06.16"]
[Round "9.7"]
[White "Aaryan Varshney"]
[Black "Nikitenko, Mihail"]
[Result "1/2-1/2"]
[ECO "D45"]
[WhiteElo "2308"]
[BlackElo "2479"]
[Annotator "TA"]
[PlyCount "118"]
[EventDate "2022.06.13"]
[EventType "swiss"]
[EventCountry "IND"]
[SourceTitle "playchess.com"]
[Source "ChessBase"]
[SourceQuality "1"]
[TimeControl "5400+30"]

{[%evp 23,118,0,9,5,3,10,20,7,26,31,27,24,58,21,19,19,27,24,31,21,21,14,12,10,18,10,16,14,55,56,73,58,71,19,0,16,102,68,67,70,66,67,82,0,0,0,31,14,13,14,16,0,34,37,52,0,41,0,0,0,0,0,0,0,0,0,0,0,0,0,0,0,0,0,0,0,0,0,0,0,0,0,0,0,0,0,0,0,0,-8,-8,-8,-8,-8,-8,-8,-8]} 1. d4 {[%emt 0:00:04]} Nf6 {[%emt 0:00:06]} 2. c4 {[%emt 0:00:10]} e6 {[%emt 0:00:06]} 3. Nf3 {[%emt 0:00:04]} d5 {[%emt 0:00:07]} 4. Nc3 {[%emt 0:00:05]} c6 {[%emt 0:00:06]} 5. e3 {[%emt 0:00:20]} Nbd7 {[%emt 0:00:07]} 6. Be2 {[%emt 0:00:13]} Bd6 {[%emt 0:00:08]} 7. O-O {[%emt 0:00:08]} b6 {[%emt 0:00:04]} 8. b3 {[%emt 0:00:06]} Bb7 {[%emt 0:00:06]} 9. Bb2 {[%emt 0:00:05]} Qe7 {[%emt 0:00:05]} 10. Qc2 {[%emt 0:00:18]} O-O {[%emt 0:00:07]} 11. Rad1 {[%emt 0:00:06]} Rad8 {[%emt 0:00:14]} 12. Rfe1 {[%emt 0:00:07]} Rfe8 {[%emt 0:00:07]} 13. Bf1 {[%emt 0:00:47] D45: Semi-Slav: 5 e3.} c5 {[%emt 0:01:39]} 14. cxd5 {[%emt 0:00:09]} exd5 {[%emt 0:00:04]} 15. dxc5 {[%emt 0:00:52]} Nxc5 {[%emt 0:01:14]} 16. Nb5 {[%emt 0:01:24]} Bb8 {[%emt 0:00:32]} 17. Nbd4 {[%emt 0:00:28]} Nce4 {[%emt 0:04:02]} 18. h3 {[%emt 0:03:43]} Rc8 {[%emt 0:00:42]} 19. Qd3 {[%emt 0:00:13] [#]} g6 $146 {[%emt 0:04:23]} ({Predecessor:} 19... Qd7 20. Qb5 Qd8 21. Rc1 a6 22. Rxc8 Bxc8 23. Qd3 Nc5 24. Qc2 Qd6 25. Nf5 Qe6 {1-0 (70) Mahalakshmi,M (2185)-Fataliyeva,U (2318) Moscow 2019}) 20. Rc1 {[%emt 0:04:42]} a6 {[%emt 0:00:13]} 21. Rxc8 {[%emt 0:01:05]} Rxc8 {[%emt 0:00:05]} 22. Rc1 {[%emt 0:00:35]} (22. Ne2 {looks sharper.} Bd6 23. Rc1 Rxc1 24. Nxc1 Bc5 25. Qe2) 22... Rxc1 {[%emt 0:00:04]} 23. Bxc1 {[%emt 0:00:03]} Bd6 {[%emt 0:00:03]} 24. Qc2 {[%emt 0:01:54]} b5 {[%emt 0:00:34]} 25. Bb2 {[%emt 0:02:56]} b4 {[%emt 0:13:04]} 26. Nc6 {[%emt 0:04:46]} Qe8 {[%emt 0:00:17]} 27. Na5 {[%emt 0:15:16]} Bc8 {[%emt 0:01:43]} 28. Qc6 {[%emt 0:00:45]} (28. Bd4 $16) 28... Qxc6 $11 {[%emt 0:01:00]} 29. Nxc6 {[%emt 0:00:01]} Ne8 {[%emt 0:00:38]} (29... Nd7 $11 {keeps the balance.}) 30. Nfe5 {[%emt 0:02:43]} Nc3 {[%emt 0:02:29]} 31. a4 $1 {[%emt 0:03:12]} Na2 {[%emt 0:11:50]} 32. Nd3 {[%emt 0:03:13] White is more active.} Bb7 {[%emt 0:00:38]} 33. Nce5 {[%emt 0:08:19]} ({White should try} 33. Nd8 $16 Ba8 34. Ne5) 33... Nc3 {[%emt 0:02:03]} 34. Nf3 {[%emt 0:21:20]} Nf6 {[%emt 0:01:51]} 35. Bxc3 {[%emt 0:07:13]} bxc3 {[%emt 0:00:42]} 36. Nd4 {[%emt 0:01:17]} Ne4 {[%emt 0:05:08]} 37. b4 {[%emt 0:04:17][%cal Bb3b4,Bb4b5][%mdl 32]} Nd2 {[%emt 0:04:26]} 38. b5 {[%emt 0:08:10]} Nc4 {[%emt 0:01:59]} 39. Be2 {[%emt 0:02:45]} (39. bxa6 $14 Bxa6 40. Nc1) 39... Kf8 {[%emt 0:05:02]} 40. Kf1 {[%emt 0:00:28]} Nb2 {[%emt 0:10:26] The position is equal.} 41. bxa6 {[%emt 0:00:44]} Bxa6 {[%emt 0:00:13]} 42. Nc1 {[%emt 0:00:26] Pair of Knights!} Bxe2+ {[%emt 0:00:53]} 43. Kxe2 {[%emt 0:00:18] And now a5 would win.} Nxa4 {[%emt 0:00:04][%mdl 4096] Endgame KBN-KNN} 44. Kd3 {[%emt 0:00:48]} h5 {[%emt 0:15:15]} 45. Nce2 {[%emt 0:00:54]} Nc5+ {[%emt 0:00:25]} 46. Kc2 {[%emt 0:00:34]} Ne4 {[%emt 0:00:04]} 47. f3 {[%emt 0:00:15]} Nf6 {[%emt 0:00:04]} 48. Nxc3 {[%emt 0:00:28]} Bc5 {[%emt 0:00:05]} 49. Kd3 {[%emt 0:00:35]} Ke7 {[%emt 0:00:32]} 50. e4 {[%emt 0:03:54]} dxe4+ {[%emt 0:01:52]} 51. Nxe4 {[%emt 0:00:10]} Bxd4 {[%emt 0:00:18]} 52. Kxd4 {[%emt 0:00:05] KN-KN} Nd7 {[%emt 0:18:31]} 53. h4 {[%emt 0:00:51]} Ke6 {[%emt 0:00:00]} 54. g4 {[%emt 0:00:19]} hxg4 {[%emt 0:00:00]} 55. fxg4 {[%emt 0:00:02]} f5 {[%emt 0:00:00]} 56. gxf5+ {[%emt 0:00:16]} Kxf5 {[%emt 0:00:00]} 57. h5 {[%emt 0:00:08]} gxh5 {[%emt 0:00:00] [#] Strongly threatening ...Kf4.} 58. Ng3+ {[%emt 0:00:03]} Kg6 {[%emt 0:00:00]} 59. Nxh5 {[%emt 0:00:03]} Kxh5 {[%emt 0:00:00] Weighted Error Value: White=0.10 (very precise) /Black=0.11 (very precise)} 1/2-1/2

[Event "3rd VIZAG GM-Open 2022"]
[Site "Visakapatnam"]
[Date "2022.06.16"]
[Round "9.8"]
[White "Nigmatov, Ortik"]
[Black "Bharat Kumar Reddy Poluri"]
[Result "1-0"]
[ECO "C18"]
[WhiteElo "2463"]
[BlackElo "2224"]
[Annotator "TA"]
[PlyCount "85"]
[EventDate "2022.06.13"]
[EventType "swiss"]
[EventCountry "IND"]
[SourceTitle "playchess.com"]
[Source "ChessBase"]
[SourceQuality "1"]
[TimeControl "5400+30"]

{[%evp 23,85,34,50,0,0,0,0,4,58,58,60,52,167,162,162,156,209,204,193,183,205,207,207,202,246,250,244,237,352,346,344,175,166,166,228,228,228,228,228,222,213,199,196,185,164,164,164,164,1184,1129,1368,1277,1507,1310,1759,1543,2340,1981,2031,1827,29977,29980,29972,29972]} 1. e4 {[%emt 0:00:03]} e6 {[%emt 0:00:09]} 2. d4 {[%emt 0:00:17]} d5 {[%emt 0:00:04]} 3. Nc3 {[%emt 0:00:09]} Bb4 {[%emt 0:00:09]} 4. e5 {[%emt 0:00:22]} c5 {[%emt 0:00:13]} 5. a3 {[%emt 0:00:04]} Bxc3+ {[%emt 0:00:14]} 6. bxc3 {[%emt 0:00:04]} Ne7 {[%emt 0:00:22]} 7. Qg4 {[%emt 0:02:47]} cxd4 {[%emt 0:03:27]} 8. Qxg7 {[%emt 0:04:55]} Rg8 {[%emt 0:00:11]} 9. Qxh7 {[%emt 0:00:05]} Qc7 {[%emt 0:00:27]} 10. Qd3 {[%emt 0:03:46]} dxc3 {[%emt 0:03:02]} 11. f4 {[%emt 0:02:18]} Bd7 {[%emt 0:03:26]} 12. Ne2 {[%emt 0:01:53]} Nbc6 {[%emt 0:00:07][%cal Od5d4]} 13. g3 {[%emt 0:09:15] C18: French: 3 Nc3 Bb4: Main line: 7 h4 and 7 Qg4.} (13. Qxc3 $14 Nf5 14. h4) 13... d4 $11 {[%emt 0:17:25]} 14. Bg2 {[%emt 0:00:25]} O-O-O {[%emt 0:00:20]} 15. O-O {[%emt 0:00:13] The position is equal.} ({Of course not} 15. Nxd4 Nxd4 16. Qxd4 Bc6 $15) 15... Be8 {[%emt 0:13:24]} ({Black should play} 15... Kb8 $11) 16. Rb1 $14 {[%emt 0:01:09]} Nf5 {[%emt 0:10:58]} 17. Be4 {[%emt 0:22:04] [#]} Na5 $146 {[%emt 0:00:37] Black is on the road to losing.} (17... f6 $14) ({Predecessor:} 17... Nce7 18. Bxb7+ Qxb7 19. Rxb7 Kxb7 20. a4 Bc6 21. Ba3 Nd5 22. Rb1+ Ka8 23. Qa6 Rc8 {1-0 (30) Gomez Cusnir,V-Montero,C ICC INT 2009}) 18. Bxf5 $18 {[%emt 0:05:35]} exf5 {[%emt 0:00:03]} 19. Nxd4 {[%emt 0:00:20]} Nc6 {[%emt 0:03:00] [#]} (19... Kb8 $16 20. Be3 Qc4) 20. Nb5 $1 {[%emt 0:02:07]} (20. Qxf5+ Bd7 21. e6 Nxd4 22. exd7+ Rxd7 $11) 20... Rxd3 {[%emt 0:06:08]} 21. Nxc7 {[%emt 0:00:06]} Rd7 {[%emt 0:00:23]} 22. Nb5 {[%emt 0:00:53]} Nd4 {[%emt 0:00:23]} 23. Nd6+ {[%emt 0:02:17]} (23. Nxa7+ Kb8 $14) 23... Kb8 {[%emt 0:00:06]} 24. Rf2 {[%emt 0:10:05]} Rxd6 {[%emt 0:00:45]} 25. exd6 {[%emt 0:00:39]} Bc6 {[%emt 0:37:37]} (25... Nb5 $142 26. Re2 Nxd6) 26. Be3 {[%emt 0:01:47]} Nf3+ {[%emt 0:00:00] [#]} 27. Rxf3 $1 {[%emt 0:05:16]} Bxf3 {[%emt 0:00:00][%mdl 4096] Endgame KRB-KRB} 28. Rb3 {[%emt 0:00:43]} Rc8 {[%emt 0:00:00]} (28... Kc8 $142 29. Rxc3+ (29. Bxa7 Kd7 $16) 29... Kd7 30. Bxa7 Be4) 29. Bd4 {[%emt 0:07:22] Black must now prevent Be5.} Rc4 {[%emt 0:00:00]} 30. Rxc3 {[%emt 0:03:38]} Rxc3 {[%emt 0:00:00]} 31. Bxc3 {[%emt 0:01:24] KB-KB} Kc8 {[%emt 0:00:00]} 32. Bf6 {[%emt 0:00:15]} Kd7 {[%emt 0:00:00] [#]} 33. Be7 {[%emt 0:00:41]} Bd1 {[%emt 0:00:00]} 34. c3 {[%emt 0:00:23]} Kc6 {[%emt 0:00:00]} 35. Kg2 {[%emt 0:00:44] Threatens to win with Kh3.} f6 $2 {[%emt 0:00:00]} (35... Bg4 36. Kf1 Kd7) 36. Kh3 {[%emt 0:03:44]} Kd7 {[%emt 0:00:00]} 37. Bxf6 {[%emt 0:00:27]} Kxd6 {[%emt 0:00:00]} 38. Kh4 {[%emt 0:00:02]} Ke6 {[%emt 0:00:00]} 39. Kg5 {[%emt 0:00:02]} Bg4 {[%emt 0:00:00]} 40. h4 {[%emt 0:00:33][%cal Bh2h4,Bh4h5][%mdl 32] aiming for Bd4.} Kf7 {[%emt 0:00:00]} 41. Bd4 {[%emt 0:01:05] White wants to mate with h5.} a6 {[%emt 0:00:00]} 42. h5 {[%emt 0:00:30]} Kg8 {[%emt 0:00:00]} 43. Kg6 {[%emt 0:00:08] Weighted Error Value: White=0.13 (very precise) /Black=0.58} 1-0

[Event "3rd VIZAG GM-Open 2022"]
[Site "Visakapatnam"]
[Date "2022.06.16"]
[Round "9.9"]
[White "Baghdasaryan, Vahe"]
[Black "Neelotpal, Das"]
[Result "1/2-1/2"]
[ECO "C54"]
[WhiteElo "2267"]
[BlackElo "2431"]
[Annotator "TA"]
[PlyCount "73"]
[EventDate "2022.06.13"]
[EventType "swiss"]
[EventCountry "IND"]
[SourceTitle "playchess.com"]
[Source "ChessBase"]
[SourceQuality "1"]
[TimeControl "5400+30"]

{[%evp 14,73,31,29,52,22,40,47,50,24,37,62,41,18,48,56,55,34,46,38,58,40,31,14,38,37,45,10,27,0,0,0,0,0,0,0,0,0,0,0,0,0,0,-2,0,0,0,-11,1,4,0,6,22,0,0,0,0,0,0,0,3,3]} 1. e4 {[%emt 0:12:02]} e5 {[%emt 0:00:03]} 2. Nf3 {[%emt 0:00:11]} Nc6 {[%emt 0:00:06]} 3. Bc4 {[%emt 0:00:36]} Nf6 {[%emt 0:00:07]} 4. d3 {[%emt 0:00:11]} Bc5 {[%emt 0:04:21]} 5. O-O {[%emt 0:04:33]} O-O {[%emt 0:00:04]} 6. c3 {[%emt 0:00:05]} d5 {[%emt 0:02:42]} 7. exd5 {[%emt 0:00:08]} Nxd5 {[%emt 0:00:04]} 8. Re1 {[%emt 0:00:37]} Nb6 {[%emt 0:00:27] C54: Giuoco Piano: 4 c3 Nf6, main lines with 5 d4 and 5 d3.} 9. b4 {[%emt 0:15:31]} Bd6 {[%emt 0:12:03]} 10. Bb3 {[%emt 0:01:47]} Bg4 {[%emt 0:05:27] White is slightly better.} 11. Nbd2 {[%emt 0:00:52][%cal Bb1d2,Bd2e4,Be4g3][%mdl 32]} Kh8 {[%emt 0:00:18]} 12. h3 {[%emt 0:09:02]} Bh5 {[%emt 0:00:15]} 13. Ne4 {[%emt 0:00:08]} f6 {[%emt 0:05:20]} 14. a4 {[%emt 0:08:56][%cal Ba2a4,Ba4a5][%mdl 32]} a6 {[%emt 0:03:42] [#]} 15. a5 $146 {[%emt 0:00:43]} ({Predecessor:} 15. Ng3 Bf7 16. Bxf7 Rxf7 17. Qb3 Qg8 18. a5 Nd7 19. Nf5 Rff8 20. Qc2 Rfe8 21. Bd2 {½-½ (77) Vocaturo,D (2500)-Godena,M (2537) Sarre 2009}) 15... Nc8 {[%emt 0:00:41][%cal Bb6c8,Bc8d6,Bd6c4][%mdl 32]} 16. Ng3 {[%emt 0:00:37]} Bf7 {[%emt 0:00:16]} 17. Bxf7 {[%emt 0:10:20]} Rxf7 {[%emt 0:00:36]} 18. d4 {[%emt 0:00:17]} Rd7 {[%emt 0:06:30]} 19. dxe5 {[%emt 0:05:58]} Bxe5 {[%emt 0:00:55]} 20. Qb3 {[%emt 0:06:45]} Nd6 {[%emt 0:08:06]} 21. Ra2 {[%emt 0:00:52]} Qg8 {[%emt 0:08:15] The position is equal.} 22. Qxg8+ {[%emt 0:02:41]} Kxg8 {[%emt 0:00:15]} 23. Nxe5 {[%emt 0:04:51]} Nxe5 {[%emt 0:00:06]} 24. Rd1 {[%emt 0:01:20]} Rad8 {[%emt 0:00:33]} 25. Bf4 {[%emt 0:00:05]} Ndc4 {[%emt 0:02:54] Pair of Knights!} 26. Rxd7 {[%emt 0:00:21]} Rxd7 {[%emt 0:00:04]} 27. Bxe5 {[%emt 0:02:24]} Nxe5 $11 {[%emt 0:00:04][%mdl 4096] Endgame KRN-KRN} 28. Ne4 {[%emt 0:00:03]} Rd1+ {[%emt 0:00:26]} 29. Kh2 {[%emt 0:00:02]} Nd7 {[%emt 0:00:04]} 30. Rb2 {[%emt 0:02:48]} c6 {[%emt 0:00:59]} 31. g4 {[%emt 0:04:49]} Kf7 {[%emt 0:02:36]} 32. f4 {[%emt 0:01:27]} Rd3 {[%emt 0:06:51]} 33. f5 {[%emt 0:03:55]} g6 {[%emt 0:08:24]} 34. Rd2 {[%emt 0:00:24]} Rxd2+ {[%emt 0:02:28]} 35. Nxd2 {[%emt 0:00:01]} gxf5 {[%emt 0:00:51]} 36. gxf5 {[%emt 0:00:05]} c5 {[%emt 0:00:30]} 37. Ne4 {[%emt 0:00:23] Weighted Error Value: White=0.08 (flawless) /Black=0.07 (flawless)} 1/2-1/2

[Event "3rd VIZAG GM-Open 2022"]
[Site "Visakapatnam"]
[Date "2022.06.16"]
[Round "9.10"]
[White "Nitin, S.."]
[Black "Ilamparthi A R"]
[Result "1-0"]
[ECO "B43"]
[WhiteElo "2399"]
[BlackElo "2121"]
[Annotator "TA"]
[PlyCount "97"]
[EventDate "2022.06.13"]
[EventType "swiss"]
[EventCountry "IND"]
[SourceTitle "playchess.com"]
[Source "ChessBase"]
[SourceQuality "1"]
[TimeControl "5400+30"]

{[%evp 15,97,28,26,15,116,121,152,153,165,164,206,146,147,148,175,175,157,81,95,66,83,65,81,76,100,35,39,41,81,77,77,76,138,67,106,55,152,166,199,144,161,158,164,90,165,166,159,159,119,140,200,151,347,338,360,285,263,251,316,304,455,389,462,433,1589,1357,2183,2018,29973,29974,29974,29975,29983,29984,29982,29983,12843,5197,29988,29989,29993,29994,29994,29995]} 1. e4 {[%emt 0:00:33]} c5 {[%emt 0:00:05]} 2. Nf3 {[%emt 0:00:09]} e6 {[%emt 0:00:05]} 3. d4 {[%emt 0:00:14]} cxd4 {[%emt 0:00:07]} 4. Nxd4 {[%emt 0:00:06]} a6 {[%emt 0:00:06]} 5. Nc3 {[%emt 0:03:55]} b5 {[%emt 0:00:07]} 6. Bd3 {[%emt 0:00:06]} Bb7 {[%emt 0:02:17]} 7. O-O {[%emt 0:00:47]} Nc6 {[%emt 0:04:10]} 8. Nxc6 {[%emt 0:00:28]} Bxc6 {[%emt 0:02:23]} 9. Qe2 {[%emt 0:07:07] B43: Sicilian: Kan Variation: 5 Nc3.} d6 {[%emt 0:10:25]} (9... Bd6 $11) 10. a4 $16 {[%emt 0:00:59]} b4 {[%emt 0:02:18] [#]} 11. Nd5 {[%emt 0:00:35][%mdl 512] White is clearly better.} a5 {[%emt 0:05:53]} 12. Bb5 {[%emt 0:10:43]} Rc8 {[%emt 0:00:22]} 13. Bg5 {[%emt 0:18:46] [#]} f6 $146 {[%emt 0:07:50] [#]} (13... Qxg5 $2 14. Bxc6+ Rxc6 15. Qb5 $18) ({Predecessor:} 13... Nf6 14. Bxf6 gxf6 15. Bxc6+ Rxc6 16. Qb5 Qc8 17. c3 b3 18. Nxf6+ Ke7 19. Qg5 h6 20. Qh4 Rc5 21. Rad1 Qc6 22. e5 {1-0 (22) Stets,D (2416)-Aydin,H (1944) Istanbul 2016}) 14. Bd2 {[%emt 0:09:06] White is much more active. The black rooks are badly placed.} Bxb5 {[%emt 0:12:50]} (14... Ne7 15. Qh5+) 15. Qxb5+ {[%emt 0:00:27]} Kf7 {[%emt 0:00:05] [#]} 16. Ne3 {[%emt 0:04:51]} (16. Nb6 $142 $1 {[%cal Rb6c8]} Rc5 17. Qa6) 16... Rc5 {[%emt 0:09:12]} 17. Qd3 {[%emt 0:02:20]} (17. Qa6 {seems wilder.} Ne7 18. c3 bxc3 19. Bxc3 Nc6 20. f4) 17... Ne7 {[%emt 0:00:44]} 18. c3 {[%emt 0:01:23]} bxc3 {[%emt 0:04:47]} 19. Bxc3 {[%emt 0:00:41]} Nc6 {[%emt 0:06:16] [#] Against b4} 20. Rad1 {[%emt 0:06:47]} (20. f4 $1 $16) 20... Be7 $14 {[%emt 0:01:11]} 21. f4 {[%emt 0:00:06][%cal Bf2f4,Bf4f5][%mdl 32]} Qb8 {[%emt 0:04:55]} 22. f5 {[%emt 0:00:48] aiming for fxe6+.} e5 {[%emt 0:00:45]} 23. Nd5 {[%emt 0:00:17]} Rd8 {[%emt 0:02:35]} (23... Qa7 $142 24. Kh1 Rb8) 24. Qf3 {[%emt 0:05:21]} (24. Rf3 $16) 24... Kg8 {[%emt 0:01:16]} 25. Rd3 {[%emt 0:00:19]} (25. Be1 $16) 25... Qb7 {[%emt 0:04:23]} (25... Qa7 $14 26. Kh1 Bf8) 26. Qg4 {[%emt 0:02:59] Rg3 is the strong threat.} Rc8 {[%emt 0:01:32]} 27. Qh5 {[%emt 0:05:19]} ({White should play} 27. Rg3 $18 {[%csl Gg3][%cal Rg4g7]} Bd8 28. Bd2 Rxd5 29. exd5) 27... Nb4 {[%emt 0:01:58]} 28. Bxb4 {[%emt 0:04:01]} axb4 {[%emt 0:00:12]} 29. Qd1 {[%emt 0:03:36]} (29. Rh3 h6 $16) (29. b3 $18) 29... Bf8 {[%emt 0:03:43]} (29... Bd8 $16 {was worth a try.}) 30. Qb3 {[%emt 0:02:17] Intending Nxf6+ and mate.} Kh8 {[%emt 0:00:17]} 31. h3 {[%emt 0:05:07]} ({Resist} 31. Qxb4 Qa7 32. Kh1 Rb8 $16) 31... Rc4 {[%emt 0:01:22]} 32. Re3 $40 {[%emt 0:01:04][%mdl 128] White has strong attack.} Rd4 {[%emt 0:02:05]} (32... Be7 $16) 33. Kh2 {[%emt 0:01:44]} Rcc4 $2 {[%emt 0:00:42] A mistake that costs the game.} (33... Qa7 $16 34. Rd1 Rdc4) 34. Rd1 $18 {[%emt 0:01:18] Threatens to win with Rxd4.} Rxe4 {[%emt 0:01:44]} 35. Rxe4 {[%emt 0:00:08]} Rxe4 {[%emt 0:00:01]} 36. Qc2 {[%emt 0:00:07] Against Re2} Rh4 {[%emt 0:04:20]} 37. b3 {[%emt 0:00:15]} Qa8 {[%emt 0:01:48]} (37... h5 {might work better.} 38. Qc7 Qxc7 39. Nxc7 Rd4 40. Rxd4 exd4) 38. g4 {[%emt 0:01:57][%cal Bg2g4,Bg4f5][%mdl 32]} Qb7 {[%emt 0:02:44]} 39. Kg3 {[%emt 0:01:10]} Rh6 {[%emt 0:00:07]} (39... g5 $142 40. fxg6 Rh6 41. gxh7 Qxh7 42. Qxh7+ Rxh7) 40. Qc7 {[%emt 0:00:21]} Qa8 {[%emt 0:01:01]} 41. Qf7 {[%emt 0:01:03]} g6 {[%emt 0:00:43]} 42. Rc1 {[%emt 0:01:17]} gxf5 {[%emt 0:00:21]} 43. gxf5 {[%emt 0:00:06]} Rh5 {[%emt 0:00:04]} 44. Qxf6+ {[%emt 0:00:53]} Bg7 {[%emt 0:01:09]} 45. Qe6 {[%emt 0:00:06]} Rg5+ {[%emt 0:01:00]} 46. Kh2 {[%emt 0:00:40]} (46. Kh4 $142 Bh6 47. Rc8+ Qxc8 48. Qxc8+ Rg8 49. Qe6 Bf4 50. f6 Bg5+ 51. Kh5) 46... Qg8 {[%emt 0:00:36]} 47. Rc8 {[%emt 0:00:55][%csl Ge6][%cal Rc8g8] White mates.} Bf8 {[%emt 0:00:07]} 48. Qf6+ {[%emt 0:00:38]} Rg7 {[%emt 0:00:09]} 49. Rxf8 {[%emt 0:00:12] Weighted Error Value: White=0.18 (very precise) /Black=0.63} 1-0